[Event "44th Chess Olympiad Open 2022"]
[Site "Chennai"]
[Date "2022.07.30"]
[Round "2.65"]
[White "De Silva, L M S T"]
[Black "Albury, Noah"]
[Result "1-0"]
[ECO "C27"]
[WhiteElo "2212"]
[BlackElo "1324"]
[Annotator "TA"]
[PlyCount "61"]
[EventDate "2022.07.29"]
[EventType "team-tourn"]
[EventCountry "IND"]
[SourceTitle "playchess.com"]
[Source "ChessBase"]
[SourceQuality "1"]
[WhiteTeam "Sri Lanka"]
[BlackTeam "Bahamas"]
[WhiteTeamCountry "SRI"]
[BlackTeamCountry "BAH"]
[TimeControl "40/5400+30:1800+30"]

{[%evp 9,61,-1,-10,-4,79,80,368,377,444,446,547,520,520,524,521,465,518,506,513,402,384,361,390,382,381,383,438,436,437,432,450,458,911,911,986,983,968,977,988,979,1128,1118,1091,1065,1251,1258,1255,1248,1590,1577,1566,1529,1729,1710]} 1. e4 {[%emt 0:00:06]} e5 {[%emt 0:00:10]} 2. Nc3 {[%emt 0:00:41]} Nf6 {[%emt 0:00:26]} 3. Bc4 {[%emt 0:00:51]} Bc5 {[%emt 0:00:45]} 4. d3 {[%emt 0:00:56]} O-O {[%emt 0:01:13]} 5. f4 {[%emt 0:06:34]} d5 {[%emt 0:13:49]} 6. Nxd5 {[%emt 0:17:35] C27: Vienna Game: 2...Nf6 3 Bc4 Nxe4.} Ng4 {[%emt 0:14:21]} (6... Be6 $11) 7. f5 $16 {[%emt 0:02:49] [#]} Qh4+ $146 {[%emt 0:10:52][%mdl 8192]} (7... Nf2 $16 8. Qh5 c6) ({Predecessor:} 7... Nf2 8. Qh5 Kh8 9. Nh3 Nxh3 10. Qxh3 c6 11. Nc3 b5 12. Bb3 a5 13. a4 b4 {0-1 (49) Bon,M (2416)-Salinas Herrera,P (2502) Chess.com INT 2021}) 8. g3 $18 {[%emt 0:02:39] White is winning.} Bf2+ {[%emt 0:02:28]} 9. Kf1 {[%emt 0:06:09][%cal Be1f1,Bf1g1,Bg1g2][%mdl 32]} Qh5 {[%emt 0:05:52]} 10. Qf3 {[%emt 0:04:21]} Bxg1 {[%emt 0:12:40]} 11. Kxg1 {[%emt 0:00:34] [#] Hoping for h3.} Nd7 {[%emt 0:00:58]} 12. Nxc7 {[%emt 0:04:23]} Rb8 {[%emt 0:00:42]} 13. h3 {[%emt 0:00:33]} Ngf6 {[%emt 0:01:17]} 14. Qxh5 {[%emt 0:01:55]} Nxh5 {[%emt 0:00:05]} 15. Kg2 {[%emt 0:00:46]} Nb6 {[%emt 0:01:46]} 16. Bb3 {[%emt 0:01:33]} Bd7 {[%emt 0:00:51]} 17. Be3 {[%emt 0:01:39]} Na4 {[%emt 0:05:08]} 18. Bxa7 {[%emt 0:05:26] White is clearly winning.} Rbc8 {[%emt 0:00:28]} 19. Nd5 {[%emt 0:00:44][%cal Bc7d5,Bd5f6,Bf6d7,Bd7e5][%mdl 32] [#] aiming for Ne7+.} Ra8 {[%emt 0:05:31]} 20. Be3 {[%emt 0:01:19]} g6 {[%emt 0:02:46]} (20... Nf6 $142 21. Ne7+ Kh8) 21. g4 {[%emt 0:00:25]} Nf4+ {[%emt 0:01:04]} 22. Bxf4 {[%emt 0:00:07]} exf4 {[%emt 0:00:10]} 23. Nf6+ {[%emt 0:00:07]} Kg7 {[%emt 0:01:16]} 24. Nxd7 {[%emt 0:00:08]} Rfd8 {[%emt 0:00:46]} 25. f6+ {[%emt 0:00:17]} Kg8 {[%emt 0:00:42]} 26. Ne5 {[%emt 0:00:08]} Nc5 {[%emt 0:01:37]} 27. Bxf7+ {[%emt 0:01:06]} Kf8 {[%emt 0:00:28]} 28. Bd5 {[%emt 0:00:13]} Nd7 {[%emt 0:00:58]} 29. Nxd7+ {[%emt 0:00:09]} Rxd7 {[%emt 0:00:09]} 30. c4 {[%emt 0:00:10]} Ra5 {[%emt 0:01:34]} 31. e5 {[%emt 0:00:11] Black got outplayed after the opening.  Weighted Error Value: White=0.14 (very precise) /Black=0.66} 1-0

[Event "44th Chess Olympiad Open 2022"]
[Site "Chennai"]
[Date "2022.07.30"]
[Round "2.65"]
[White "Alahakoon, Isuru"]
[Black "Knowles, Kendrick"]
[Result "1/2-1/2"]
[ECO "B13"]
[WhiteElo "2000"]
[BlackElo "1907"]
[Annotator "TA"]
[PlyCount "86"]
[EventDate "2022.07.29"]
[EventType "team-tourn"]
[EventCountry "IND"]
[SourceTitle "playchess.com"]
[Source "ChessBase"]
[SourceQuality "1"]
[WhiteTeam "Sri Lanka"]
[BlackTeam "Bahamas"]
[WhiteTeamCountry "SRI"]
[BlackTeamCountry "BAH"]
[TimeControl "40/5400+30:1800+30"]

{[%evp 19,86,24,21,18,15,21,11,10,21,0,9,6,81,84,79,64,77,27,54,37,95,90,100,-30,-17,-22,0,0,0,0,0,0,0,-89,420,436,427,426,1696,1747,1617,1598,1569,1554,1260,137,151,139,155,41,173,176,412,412,412,412,408,0,0,0,0,0,0,0,0,0,0,0,0]} 1. d4 {[%emt 0:00:13]} Nf6 {[%emt 0:00:23]} 2. Bf4 {[%emt 0:00:15]} d5 {[%emt 0:01:25]} 3. e3 {[%emt 0:00:24]} c5 {[%emt 0:00:13]} 4. c3 {[%emt 0:00:46]} Nc6 {[%emt 0:00:21]} 5. Nd2 {[%emt 0:00:10]} a6 {[%emt 0:02:04]} 6. Ngf3 {[%emt 0:01:29]} cxd4 {[%emt 0:02:07]} 7. exd4 {[%emt 0:00:11]} Bg4 {[%emt 0:00:31]} 8. Bd3 {[%emt 0:03:10]} e6 {[%emt 0:00:06]} 9. O-O {[%emt 0:03:30]} Bd6 {[%emt 0:00:12]} 10. Bxd6 {[%emt 0:00:06]} Qxd6 {[%emt 0:00:05]} 11. Re1 {[%emt 0:00:10] B13: Caro-Kann: Exchange Variation and Panov-Botvinnik Attack.} O-O {[%emt 0:00:10]} 12. Qc2 {[%emt 0:03:06]} Bxf3 {[%emt 0:01:55]} 13. Nxf3 {[%emt 0:04:50] [#]} b5 $146 {[%emt 0:01:09]} ({Predecessor:} 13... Rac8 14. Qe2 Rfd8 15. Ne5 Qc7 16. f4 Re8 17. Rf1 Qe7 18. Rf3 Nd7 19. Bxh7+ Kf8 {1-0 (62) Arvizu Rivera,P-Benites Narcizo,W (1724) Oaxtepec 2014}) 14. Ne5 {[%emt 0:23:28]} Rfc8 {[%emt 0:06:25][%cal Oc6d4]} 15. Qe2 {[%emt 0:10:54]} Nd8 {[%emt 0:04:43]} (15... b4 $11) 16. a3 $16 {[%emt 0:05:02] White is more active.} Ra7 {[%emt 0:04:39]} 17. Rad1 {[%emt 0:04:11][%cal Ba1d1,Bd1d3,Bd3h3][%mdl 32]} Rac7 {[%emt 0:00:22]} 18. Bb1 {[%emt 0:05:33]} (18. f4 $16) 18... g6 {[%emt 0:05:34]} 19. h4 {[%emt 0:08:17]} Kg7 {[%emt 0:03:58]} (19... Nc6 $14) 20. Rd3 {[%emt 0:03:33]} a5 {[%emt 0:00:39] [#]} 21. h5 {[%emt 0:08:46]} ({White should play} 21. Rg3 $1 $16) 21... Nxh5 $11 {[%emt 0:01:05] ...Nf4 is the strong threat.} 22. Qd2 {[%emt 0:02:55] Against Nf4} b4 {[%emt 0:02:07]} 23. axb4 {[%emt 0:00:35]} axb4 {[%emt 0:00:04]} 24. Rh3 {[%emt 0:00:25] And now g4 would win.} bxc3 {[%emt 0:00:37]} 25. bxc3 {[%emt 0:00:05] aiming for g4.} f5 {[%emt 0:03:31]} 26. g4 {[%emt 0:04:47]} (26. Qg5 $11 {keeps the balance.} Nf7 27. Nxf7 Kxf7 28. Rxh5 gxh5 29. Qh6) 26... Nf6 $2 {[%emt 0:02:29][%mdl 8192]} (26... fxg4 $17 {keeps the pressure on.} 27. Rh4 (27. Nxg4 $2 Qf4 $19) 27... Nf7 28. Rxg4 Nxe5 29. Rxe5 Nf6) 27. gxf5 $18 {[%emt 0:03:02]} exf5 {[%emt 0:00:56]} 28. Bxf5 {[%emt 0:00:26]} gxf5 {[%emt 0:08:32]} (28... Ng8 $142 29. Bxc8 Rxc8) 29. Qh6+ {[%emt 0:02:19]} ({Avoid the trap} 29. Qf4 $2 Kg8 30. Rg3+ Rg7 31. Rxg7+ Kxg7 $19) 29... Kh8 {[%emt 0:01:54]} 30. Rg3 {[%emt 0:02:01] Threatening mate with Ng6+.} Ne4 {[%emt 0:04:43]} 31. Ng6+ $1 {[%emt 0:00:45]} Kg8 {[%emt 0:00:53]} 32. Rxe4 $2 {[%emt 0:00:30]} Qxg3+ $16 {[%emt 0:00:27]} 33. fxg3 {[%emt 0:00:16][%csl Gg6][%cal Rh6f8]} Nf7 {[%emt 0:00:14]} 34. Qh4 {[%emt 0:00:45]} (34. Ne7+ $16 Rxe7 35. Qa6) 34... hxg6 {[%emt 0:01:33]} (34... dxe4 $14 35. Ne7+ Rxe7 36. Qxe7 Rxc3) 35. Re6 $18 {[%emt 0:00:27]} Kg7 {[%emt 0:00:14]} (35... g5 {was worth a try.} 36. Qh3 f4 37. Rg6+ Kf8) 36. Qf6+ {[%emt 0:00:13]} Kf8 {[%emt 0:01:14]} 37. Qxg6 {[%emt 0:00:40]} Rxc3 {[%emt 0:00:22]} 38. Rf6 $2 {[%emt 0:00:34]} (38. Kh2 $18 {Threatens to win with Rf6.} Rc1 39. Qxf5) 38... Rc1+ $11 {[%emt 0:00:17] The position is equal.} 39. Kg2 {[%emt 0:00:37][%csl Gf6][%cal Rg6f7]} R8c2+ {[%emt 0:00:14]} 40. Kf3 {[%emt 0:00:29][%csl Gf6][%cal Rg6f7]} Rc3+ $1 {[%emt 0:00:46]} 41. Ke2 {[%emt 0:09:17][%csl Gf6][%cal Rg6f7]} R3c2+ {[%emt 0:00:35]} 42. Kd3 {[%emt 0:00:15][%csl Gf6][%cal Rg6f7]} Rc3+ $1 {[%emt 0:00:06]} 43. Kd2 {[%emt 0:00:07][%csl Gf6][%cal Rg6f7] Chess con chili.} R3c2+ {[%emt 0:54:31] Black defended with fortune.  Weighted Error Value: White=0.65/Black=0.47} 1/2-1/2

[Event "44th Chess Olympiad Open 2022"]
[Site "Chennai"]
[Date "2022.07.30"]
[Round "2.65"]
[White "Karelina, Polina"]
[Black "Liyanage, Ranindu Dilshan"]
[Result "0-1"]
[ECO "C00"]
[WhiteElo "1835"]
[BlackElo "2286"]
[Annotator "TA"]
[PlyCount "54"]
[EventDate "2022.07.29"]
[EventType "team-tourn"]
[EventCountry "IND"]
[SourceTitle "playchess.com"]
[Source "ChessBase"]
[SourceQuality "1"]
[WhiteTeam "Bahamas"]
[BlackTeam "Sri Lanka"]
[WhiteTeamCountry "BAH"]
[BlackTeamCountry "SRI"]
[TimeControl "40/5400+30:1800+30"]

{[%evp 10,54,10,-5,-5,-9,-9,-7,-4,-10,-4,-17,-10,-28,-22,-38,-22,-33,-16,-59,-40,-59,-67,-79,-41,-69,-62,-61,-48,-50,-48,-32,-26,-91,-92,-638,-616,-865,-888,-879,-866,-798,256,-1056,-766,-29993,-29994]} 1. e4 {[%emt 0:00:09]} e6 {[%emt 0:00:23]} 2. d3 {[%emt 0:00:38]} d5 {[%emt 0:00:15]} 3. Nd2 {[%emt 0:00:26]} c5 {[%emt 0:00:17]} 4. g3 {[%emt 0:02:17]} Nc6 {[%emt 0:00:35]} 5. Bg2 {[%emt 0:00:16]} g6 {[%emt 0:00:27]} 6. f4 {[%emt 0:02:33]} Bg7 {[%emt 0:01:14] C00: French: Unusual White 2nd moves.} 7. c3 {[%emt 0:01:17]} Nge7 {[%emt 0:03:03]} 8. Ngf3 {[%emt 0:03:05]} b6 {[%emt 0:02:21] The position is equal.} 9. O-O {[%emt 0:02:23]} Ba6 {[%emt 0:01:52]} 10. Ne1 {[%emt 0:07:14]} Qd7 {[%emt 0:11:32]} 11. Rf2 {[%emt 0:05:54]} O-O {[%emt 0:03:23]} 12. Qa4 {[%emt 0:10:01]} Bb7 {[%emt 0:01:40]} 13. Ndf3 {[%emt 0:01:20]} a5 {[%emt 0:02:19]} 14. c4 {[%emt 0:04:17]} Rad8 {[%emt 0:04:02]} 15. Be3 {[%emt 0:05:02]} dxe4 {[%emt 0:13:45]} 16. dxe4 {[%emt 0:00:20]} e5 {[%emt 0:00:32]} (16... Nb4 $5 {[%cal Rd7a4]} 17. Qxd7 Rxd7 $15) 17. Rd2 {[%emt 0:06:58]} Qc7 {[%emt 0:00:37]} 18. Rad1 {[%emt 0:02:43]} Nd4 {[%emt 0:08:57]} 19. Nxe5 {[%emt 0:04:21]} Bxe5 {[%emt 0:01:49]} 20. fxe5 {[%emt 0:00:05][%cal Re3d4]} Nec6 $1 {[%emt 0:00:15]} (20... Qxe5 21. Nd3 Qg7 22. Nf4 $14) 21. Bf4 {[%emt 0:10:50]} (21. Bxd4 $11 Rxd4 22. Rxd4 Nxd4 23. Nd3) 21... Nxe5 $17 {[%emt 0:07:40] Black is more active. Pair of Knights!} 22. Nc2 $2 {[%emt 0:05:53][%mdl 8192] [#]} (22. Kh1 $17) 22... Bc6 $19 {[%emt 0:01:27]} 23. Bxe5 {[%emt 0:11:32]} Qxe5 {[%emt 0:00:34]} (23... Bxa4 $2 24. Bxc7 Bxc2 25. Rxc2 $18 (25. Bxb6 $2 Bxd1 26. Kf2 Bg4 $19)) 24. Qa3 {[%emt 0:00:47]} Nxc2 {[%emt 0:00:51]} 25. Qb3 {[%emt 0:00:38] [#]} Rd6 $146 {[%emt 0:00:14][%mdl 8192]} ({Predecessor:} 25... Rxd2 26. Rxd2 Nd4 27. Qxb6 Bxe4 28. Qxa5 Ra8 29. Qc3 Bxg2 30. Kxg2 Qe4+ 31. Kf2 Ra6 {0-1 (31) Karelina,P (1835)-Liyanage,R (2286) Chennai 2022}) 26. Rd3 {[%mdl 8192]} (26. Rxd6 $18 Bxe4 27. Bxe4 (27. Rxb6 a4 $17) (27. Qxb6 Bxg2 28. Rd8 Kg7 $17) 27... Qxe4 28. Qd3 (28. Rxb6 $2 Ne3 $19) 28... Qe3+ 29. Kf1 Qxd3+ 30. R1xd3) 26... Rxd3 {[%emt 0:00:30]} 27. Rd2 {[%emt 0:00:45]} Rxd2 {[%emt 0:00:07] Weighted Error Value: White=0.99/Black=0.61} 0-1

[Event "44th Chess Olympiad Open 2022"]
[Site "Chennai"]
[Date "2022.07.30"]
[Round "2.66"]
[White "Oatlhotse, Providence"]
[Black "Mlawa, Hemed"]
[Result "1-0"]
[ECO "A07"]
[WhiteElo "2204"]
[BlackElo "1896"]
[Annotator "TA"]
[PlyCount "53"]
[EventDate "2022.07.29"]
[EventType "team-tourn"]
[EventCountry "IND"]
[SourceTitle "playchess.com"]
[Source "ChessBase"]
[SourceQuality "1"]
[WhiteTeam "Botswana"]
[BlackTeam "Tanzania"]
[WhiteTeamCountry "BOT"]
[BlackTeamCountry "TAN"]
[TimeControl "40/5400+30:1800+30"]

{[%evp 9,53,0,27,27,23,30,22,-8,12,30,4,22,0,12,8,0,14,25,89,89,89,72,159,172,218,200,188,181,325,247,220,237,407,247,475,472,472,456,502,447,5105,4968,2424,2314,29996,29997]} 1. Nf3 {[%emt 0:00:23]} d5 {[%emt 0:00:33]} 2. g3 {[%emt 0:00:09]} Bf5 {[%emt 0:01:53]} 3. Bg2 {[%emt 0:00:15]} e6 {[%emt 0:01:00]} 4. c4 {[%emt 0:00:44]} c6 {[%emt 0:00:09]} 5. Qb3 {[%emt 0:00:23]} Qb6 {[%emt 0:00:16]} 6. d3 {[%emt 0:00:02] A07: Réti Opening: New York and Capablanca Systems.} Nd7 {[%emt 0:01:18]} 7. O-O {[%emt 0:00:13]} Ngf6 {[%emt 0:00:13]} 8. Nc3 {[%emt 0:01:19] The position is equal.} h6 {[%emt 0:00:29]} 9. cxd5 {[%emt 0:06:49] is the legacy move (9.Be3).} Qxb3 {[%emt 0:00:29]} 10. axb3 {[%emt 0:00:04] [#] Threatens to win with dxc6.} exd5 {[%emt 0:00:07]} 11. e4 {[%emt 0:00:20]} dxe4 {[%emt 0:06:43]} 12. dxe4 {[%emt 0:04:15]} Be6 {[%emt 0:01:12]} 13. Nd4 {[%emt 0:03:01]} Nc5 {[%emt 0:05:44] [#]} (13... a6 $11) 14. e5 $146 {[%emt 0:02:45]} ({Predecessor:} 14. b4 Nb3 15. Nxe6 fxe6 16. Ra4 a5 17. e5 Nd5 18. Nxd5 cxd5 19. Bh3 Bxb4 20. Bxe6 {½-½ (51) Kuemin,S (2382)-Ollenberger,R (2222) Switzerland 2014}) 14... Nd5 {[%emt 0:13:50]} 15. Nxd5 {[%emt 0:00:31]} ({Much weaker is} 15. Nxe6 $6 fxe6 16. Nxd5 exd5 $11) 15... cxd5 {[%emt 0:00:27] [#]} (15... Bxd5 $142 16. Bxd5 cxd5) 16. Be3 $1 {[%emt 0:03:15] White is more active.} a6 {[%emt 0:05:58]} (16... Na6 {might work better.} 17. Rfc1 Rc8 18. Rxc8+ Bxc8) 17. f4 {[%emt 0:01:56] aiming for f5.} g6 {[%emt 0:01:11]} 18. Rfc1 {[%emt 0:01:12]} Nd3 {[%emt 0:28:10]} (18... Rd8 $142 19. Nxe6 Nxe6) 19. Rc3 {[%emt 0:01:28]} Nb4 {[%emt 0:02:47]} 20. Rc7 {[%emt 0:05:24]} b5 $2 {[%emt 0:18:22]} (20... Rb8 21. Nxe6 fxe6) 21. Nxb5 {[%emt 0:03:01][%cal Bd4b5,Bb5c7,Bc7d5,Bd5f6][%mdl 32] Hoping for Rb7.} Rc8 $2 {[%emt 0:06:01]} (21... Kd8) 22. Rxc8+ $18 {[%emt 0:00:20]} Bxc8 {[%emt 0:00:09]} 23. Nc7+ Kd8 {[%emt 0:01:15]} 24. Nxd5 {[%emt 0:00:53]} Nc2 {[%emt 0:01:27]} (24... Nxd5 $142 25. Bxd5 Ke8 26. Bc6+ Bd7) 25. Bb6+ {[%emt 0:00:25]} Kd7 {[%emt 0:00:21]} 26. Rc1 {[%emt 0:00:37]} Nb4 {[%emt 0:00:59]} 27. Nf6+ {[%emt 0:00:17] Weighted Error Value: White=0.18 (very precise) /Black=0.80} 1-0

[Event "44th Chess Olympiad Open 2022"]
[Site "Chennai"]
[Date "2022.07.30"]
[Round "2.66"]
[White "Oratile, Kgotlane"]
[Black "Charles, Cleophas"]
[Result "1-0"]
[ECO "C44"]
[WhiteElo "2024"]
[BlackElo "1593"]
[Annotator "TA"]
[PlyCount "57"]
[EventDate "2022.07.29"]
[EventType "team-tourn"]
[EventCountry "IND"]
[SourceTitle "playchess.com"]
[Source "ChessBase"]
[SourceQuality "1"]
[WhiteTeam "Botswana"]
[BlackTeam "Tanzania"]
[WhiteTeamCountry "BOT"]
[BlackTeamCountry "TAN"]
[TimeControl "40/5400+30:1800+30"]

{[%evp 9,57,56,41,37,75,57,97,111,141,136,154,142,140,112,121,118,102,108,118,118,103,64,102,100,143,148,158,160,170,153,425,415,444,457,437,327,673,320,311,313,305,265,346,343,395,391,29994,29994,29995,29996]} 1. e4 {[%emt 0:00:11]} e5 {[%emt 0:00:21]} 2. Nf3 {[%emt 0:00:11]} Nc6 {[%emt 0:00:15]} 3. d3 {[%emt 0:00:13][%cal Bd2d3,Bd3d4][%mdl 32]} Bc5 {[%emt 0:00:30]} 4. Nxe5 {[%emt 0:01:05]} Bxf2+ {[%emt 0:01:18]} 5. Kxf2 {[%emt 0:00:08][%cal Be1f2,Bf2g1,Bg1h2][%mdl 32]} Nxe5 {[%emt 0:00:19]} 6. d4 {[%emt 0:01:07] C44: Ponziani Opening and Scotch Gambit.} Qf6+ {[%emt 0:04:52]} 7. Kg1 {[%emt 0:00:13]} Ng4 {[%emt 0:01:20][%csl Gg4][%cal Rf6f2] [#]} 8. Qd2 {[%emt 0:00:07] [#] Against Qf2+. White is better.} d6 $146 {[%emt 0:11:11]} ({Predecessor:} 8... Ne7 9. h3 Nh6 10. Nc3 a6 11. Qf4 Qxf4 12. Bxf4 d6 13. Bd3 Bd7 14. Kh2 Nhg8 {1-0 (38) Dimanoudis,A (2028)-Slavin,P (2065) ICCF email 2010}) 9. h3 {[%emt 0:00:45]} N4h6 {[%emt 0:03:24]} 10. Nc3 {[%emt 0:00:13]} Bd7 {[%emt 0:08:11]} 11. Be2 {[%emt 0:01:36]} Ne7 {[%emt 0:04:57]} 12. Kh2 {[%emt 0:02:14]} O-O {[%emt 0:06:33]} 13. Rf1 {[%emt 0:02:44]} Qg6 {[%emt 0:02:52]} 14. Rf3 {[%emt 0:05:40] Hoping for Rg3.} Kh8 {[%emt 0:05:04]} 15. Qf4 {[%emt 0:05:19]} f6 {[%emt 0:07:28]} 16. Qh4 {[%emt 0:03:00]} Neg8 {[%emt 0:08:57]} 17. Be3 {[%emt 0:04:30]} Qe8 {[%emt 0:10:49]} 18. Raf1 {[%emt 0:00:36] White is more active.} c5 {[%emt 0:01:24]} 19. Nd5 {[%emt 0:04:36] Bxh6 is the strong threat.} Rc8 $2 {[%emt 0:03:18] A mistake that costs the game.} (19... Bc6 $16 {was necessary.}) 20. Bxh6 $18 {[%emt 0:11:41]} Nxh6 {[%emt 0:05:09] [#]} 21. Nxf6 $1 {[%emt 0:07:39][%mdl 512]} gxf6 {[%emt 0:05:16]} (21... Qe6 22. Nxh7) 22. Qxh6 {[%emt 0:00:59]} cxd4 $2 {[%emt 0:01:34]} (22... f5 23. Qxd6 Rd8) 23. Bd3 {[%emt 0:00:50]} ({Not} 23. Rg3 Qe7 $16) (23. Rxf6 $142 Qe5+ 24. Kg1 Rxf6 25. Rxf6) 23... Qe5+ {[%emt 0:01:38]} 24. Kh1 {[%emt 0:01:03][%cal Rf3f6]} f5 {[%emt 0:03:31]} 25. Qh4 {[%emt 0:05:05]} Rf6 {[%emt 0:01:54]} 26. exf5 {[%emt 0:00:34] Black must now prevent Re1.} Rg8 {[%emt 0:00:40]} 27. Re1 {[%emt 0:00:23]} Qa5 {[%emt 0:00:43]} (27... Rh6 $18) 28. Qxf6+ {[%emt 0:00:15]} Rg7 {[%emt 0:00:19]} 29. Re7 {[%emt 0:00:11] Weighted Error Value: White=0.22 (precise) /Black=0.72} 1-0

[Event "44th Chess Olympiad Open 2022"]
[Site "Chennai"]
[Date "2022.07.30"]
[Round "2.66"]
[White "Njau, Albert"]
[Black "Rongwane, Gomolemo"]
[Result "0-1"]
[ECO "E19"]
[WhiteElo "1842"]
[BlackElo "2033"]
[Annotator "TA"]
[PlyCount "52"]
[EventDate "2022.07.29"]
[EventType "team-tourn"]
[EventCountry "IND"]
[SourceTitle "playchess.com"]
[Source "ChessBase"]
[SourceQuality "1"]
[WhiteTeam "Tanzania"]
[BlackTeam "Botswana"]
[WhiteTeamCountry "TAN"]
[BlackTeamCountry "BOT"]
[TimeControl "40/5400+30:1800+30"]

{[%evp 19,52,14,14,16,35,9,34,22,28,30,29,-10,-10,-15,-18,-9,0,-11,8,12,13,-98,-109,-100,-94,-90,0,-37,17,31,37,35,23,-913,-977]} 1. d4 {[%emt 0:00:16]} Nf6 {[%emt 0:01:10]} 2. Nf3 {[%emt 0:00:31]} e6 {[%emt 0:00:45]} 3. g3 {[%emt 0:00:27]} b6 {[%emt 0:00:26]} 4. Bg2 {[%emt 0:00:19]} Bb7 {[%emt 0:00:03]} 5. c4 {[%emt 0:00:37]} Be7 {[%emt 0:00:08]} 6. O-O {[%emt 0:00:24]} O-O {[%emt 0:00:13]} 7. Nc3 {[%emt 0:00:33]} Ne4 {[%emt 0:00:07]} 8. Qc2 {[%emt 0:01:37]} Nxc3 {[%emt 0:00:06]} 9. Qxc3 {[%emt 0:00:40]} f5 {[%emt 0:01:05]} 10. Rd1 {[%emt 0:01:50]} Bf6 {[%emt 0:04:38]} 11. b3 {[%emt 0:06:12] E19: Queen's Indian: Old Main Line with 7...Ne4 8 Qc2 Nxc3 8 Qxc3.} c5 {[%emt 0:05:29]} 12. e3 {[%emt 0:01:06] [#]} Qe8 $146 {[%emt 0:02:32] [#] aiming for ...Qh5.} ({Predecessor:} 12... Be4 13. Bb2 Nc6 14. Qd2 Qe7 15. dxc5 Bxb2 16. Qxb2 Qxc5 17. Rxd7 Rf7 18. Rad1 Bxf3 19. Bxf3 {0-1 (45) Karthik,D (1467)-Modi,E (1786) Chess.com INT 2020}) 13. Bb2 {[%emt 0:03:20] White is slightly better.} Qh5 {[%emt 0:02:00]} 14. Ne1 {[%emt 0:03:25]} Bxg2 {[%emt 0:01:55]} 15. Kxg2 {[%emt 0:02:32]} Nc6 {[%emt 0:07:09]} 16. Qd2 {[%emt 0:11:32]} f4 {[%emt 0:03:43]} 17. exf4 {[%emt 0:02:33] And now dxc5 would win.} Nxd4 {[%emt 0:00:32]} 18. Rab1 {[%emt 0:13:31][%cal Rb2d4]} d6 {[%emt 0:04:54]} 19. Qd3 {[%emt 0:04:11]} Rae8 {[%emt 0:02:51]} 20. b4 {[%emt 0:07:45]} (20. Bxd4 $11 Bxd4 21. Nf3) 20... e5 $17 {[%emt 0:02:21]} 21. fxe5 {[%emt 0:07:54]} Bxe5 {[%emt 0:02:26][%cal Of8f2] ( -> ...Rxf2+!)} 22. Rd2 {[%emt 0:04:24][%cal Rb2d4]} g5 {[%emt 0:04:33] 0x0.0024d7bce353dp-1022s more active pieces.} (22... Ne6 $17) 23. h3 {[%emt 0:04:47][%cal Rb2d4]} g4 {[%emt 0:03:07]} (23... Qf7 $15) 24. hxg4 $11 {[%emt 0:02:26]} Qxg4 {[%emt 0:00:03]} 25. Bxd4 {[%emt 0:00:26]} Bxd4 {[%emt 0:00:52]} 26. Nf3 $2 {[%emt 0:00:33][%mdl 8192] [#]} (26. Nc2 $11) 26... Re3 $3 {[%emt 0:00:48][%mdl 512] Weighted Error Value: White=0.49/Black=0.18 (very precise)} 0-1